{"text_format":"3","workbook":"xlsx","n_sheets":4,"sheets":["21","22","direct inspect","direct export"],"not_rendered":{"images":1},"read":"whole","date_system":"1900"}

{"sheet":"21","index":0,"n_rows":35,"n_cols":11,"rows_kept":35,"merged":[[1,1,2,9],[3,1,3,3],[3,4,3,9],[7,1,9,1],[9,10,9,11],[10,1,12,1],[18,1,19,9],[20,1,20,3],[20,4,20,9],[23,1,28,1],[23,10,26,11],[29,1,34,1]]}
[]
[null,"PROGRAMA DIARIO DE INSPECCIONES FITOSANITARIAS PARA INSPECCIONES FITOSANITARIAS DE EXPORTACION E IMPORTACION"]
[]
[null,"DIRECCION EJECUTIVA: CTD-CHINCHA",null,null,"2024-12-21"]
[null,"CTD: ICA"]
[null,"INSPECTOR ASIGNADO ","NOMBRE DE INSTALACIÓN AUTORIZADA(*)","EXPORTADOR/IMPORTADOR","PROCESO","N° DE EXPEDIENTE","PRODUCTO","PAIS DE DESTINO","HORA DE INSPECCION","OBSERVACIONES"]
[null,"GLADYS NUÑEZ","FRUCHINCHA","FRUCHINCHA","Exportación",240830008792,"UVA","PAISES BAJOS","09:00:00","MAYRA"]
[null,"NANCY HUANCA","PROCESADORA LARAN SAC","LA PORTADA S.A.C.","Exportación",240830008768,"UVA","USA","08:00:00","IINSPECCION"]
[null,null,"PROCESADORA LARAN SAC","LA PORTADA S.A.C.","Exportación",240830008769,"UVA","USA","10:00:00","IINSPECCION"]
[null,null,"PROCESADORA LARAN SAC","pob","Exportación",8788,"UVA","USA","12:00:00","VICTOR MARCELO","se adelanto"]
[null,"GLADYS NUÑEZ","COMPLEJO AGROINDUSTRIAL BETA","COMPLEJO AGROINDUSTRIAL BETA","Exportación","P","UVA","HOLANDA","14:00:00","MARIVEL "]
[null,null,"COMPLEJO AGROINDUSTRIAL BETA","COMPLEJO AGROINDUSTRIAL BETA","Exportación","P","UVA","REP. DOMINICANA","14:30:00","MARIVEL "]
[null,null,"COMPLEJO AGROINDUSTRIAL BETA","COMPLEJO AGROINDUSTRIAL BETA","Exportación","P","UVA","REP. DOMINICANA","15:00:00","MARIVEL "]
[]
[]
[]
[]
[]
[null,"PROGRAMA DIARIO DE INSPECCIONES FITOSANITARIAS PARA INSPECCIONES FITOSANITARIAS DE EXPORTACION E IMPORTACION"]
[]
[null,"DIRECCION EJECUTIVA: CTD-PISCO",null,null,"2024-12-21"]
[null,"CTD: ICA"]
[null,"INSPECTOR ASIGNADO ","NOMBRE DE INSTALACIÓN AUTORIZADA(*)","EXPORTADOR/IMPORTADOR","PROCESO","N° DE EXPEDIENTE","PRODUCTO","PAIS DE DESTINO","HORA DE INSPECCION","OBSERVACIONES"]
[null,"RUSEL TORRES","FUNDO CALIFORNIA","NECOVEX","Exportación","P","UVA","ROTTERDAM","10:00 HORAS","ADICIONAL","cancelado"]
[null,null,"FUNDO CALIFORNIA","NECOVEX","Exportación","P","UVA","ALGECIRAS","10:00 HORAS","ADICIONAL"]
[null,null,"HUAMANI","SUN FRUIT PACKS","Exportación","P","UVA","PHILADELPHIA","15:00 HORAS","NEW TRANSPORT"]
[null,null,"HUAMANI","SUN FRUIT PACKS","Exportación","P","UVA","MANZANILLO","16:00 HORAS","NEW TRANSPORT"]
[null,null,"AGROINDUSTRIAS HUAMANI","AGROINDUSTRIAL HUAMANI","EXPORTACION",240850007402,"PALTA","ROTTERDAM","13:00:00","OPERACIONES- KENDRA APARICIO"]
[null,null,"AGROINDUSTRIAL HUAMANI S.A.C.","SAFRESCO PERU S.A.","Exportación","240850007516","UVA","USA","14:00:00","RODRIGO O."]
[null,"JORGE CALMET / RUSEL TORRES","PLANTA CALIFORNIA","NECOVEX S.A.C","Exportación",240850007526,"UVA","PHILADELPHIA","13:00:00","KENDRA APARICIO"]
[null,null,"PLANTA CALIFORNIA","NECOVEX S.A.C","Exportación",240850007527,"UVA","PHILADELPHIA","15:00:00","KENDRA APARICIO"]
[null,null,"PLANTA CALIFORNIA","NECOVEX S.A.C","Exportación",240850007528,"UVA","PHILADELPHIA","18:00:00","KENDRA APARICIO"]
[null,null,"PLANTA CALIFORNIA","NECOVEX S.A.C","Exportación",240850007529,"UVA","PHILADELPHIA","19:00:00","KENDRA APARICIO"]
[null,null,"PLANTA CALIFORNIA","NECOVEX S.A.C","Exportación","240850007525","UVA","BUSAN","10:00:00","KENDRA APARICIO"]
[null,null,"PLANTA CALIFORNIA","LARAMA BERRIES","AEREO",240850007476,"ARANDANO","HONGKONG","14:00:00","DIANA GUEVARA"]

{"sheet":"22","index":1,"n_rows":36,"n_cols":10,"rows_kept":36,"merged":[[1,1,2,9],[3,1,3,3],[3,4,3,9],[6,1,11,1],[12,1,17,1],[21,1,22,9],[23,1,23,3],[23,4,23,9],[26,1,32,1],[33,1,34,1]]}
[]
[null,"PROGRAMA DIARIO DE INSPECCIONES FITOSANITARIAS PARA INSPECCIONES FITOSANITARIAS DE EXPORTACION E IMPORTACION"]
[]
[null,"DIRECCION EJECUTIVA: CTD-CHINCHA",null,null,"2024-12-22"]
[null,"CTD: ICA"]
[null,"INSPECTOR ASIGNADO ","NOMBRE DE INSTALACIÓN AUTORIZADA(*)","EXPORTADOR/IMPORTADOR","PROCESO","N° DE EXPEDIENTE","PRODUCTO","PAIS DE DESTINO","HORA DE INSPECCION","OBSERVACIONES"]
[null,"GLADYS NUÑEZ","FRUCHINCHA","FRUCHINCHA","Exportación",240830008793,"UVA","PAISES BAJOS","09:00:00","MAYRA"]
[null,null,"PROCESADORA LARAN SAC","LA PORTADA S.A.C.","Exportación",240830008822,"UVA","USA","10:00:00","VICTOR MARCELO"]
[null,null,"PROCESADORA LARAN SAC","LA PORTADA S.A.C.","Exportación",240830008819,"UVA","USA","11:00:00","VICTOR MARCELO"]
[null,null,"PROCESADORA LARAN SAC","LA PORTADA S.A.C.","Exportación",240830008823,"UVA","USA","13:00:00","VICTOR MARCELO"]
[null,null,"PROCESADORA LARAN SAC","LA PORTADA S.A.C.","Exportación",240830008824,"UVA","USA","13:00:00","VICTOR MARCELO"]
[null,null,"PROCESADORA LARAN SAC","LA PORTADA S.A.C.","Exportación",240830008812,"UVA","USA","17:00:00","VICTOR MARCELO"]
[null,"OSCAR QUISPE","SAN FERNANDO","FAMILY FARMS","Exportación",240830008799,"ARANDANO ","PAISES BAJOS","09:00:00","CARMEN SANTISTEBAN"]
[null,null,"COMPLEJO AGROINDUSTRIAL BETA","COMPLEJO AGROINDUSTRIAL BETA","Exportación",null,"UVA","CHINA","14:00:00","MARITIMO"]
[null,null,"COMPLEJO AGROINDUSTRIAL BETA","COMPLEJO AGROINDUSTRIAL BETA","Exportación",null,"UVA","REP. DOM","14:30:00","MARITIMO"]
[null,null,"COMPLEJO AGROINDUSTRIAL BETA","COMPLEJO AGROINDUSTRIAL BETA","Exportación",null,"UVA","REP. DOM","14:30:00","MARITIMO"]
[null,null,"COMPLEJO AGROINDUSTRIAL BETA","COMPLEJO AGROINDUSTRIAL BETA","Exportación",null,"UVA","CHINA","14:30:00","MARITIMO"]
[null,null,"COMPLEJO AGROINDUSTRIAL BETA","COMPLEJO AGROINDUSTRIAL BETA","Exportación",null,"UVA","HOLANDA","14:30:00","MARITIMO"]
[]
[]
[]
[null,"PROGRAMA DIARIO DE INSPECCIONES FITOSANITARIAS PARA INSPECCIONES FITOSANITARIAS DE EXPORTACION E IMPORTACION"]
[]
[null,"DIRECCION EJECUTIVA: CTD-PISCO",null,null,"2024-12-22"]
[null,"CTD: ICA"]
[null,"INSPECTOR ASIGNADO ","NOMBRE DE INSTALACIÓN AUTORIZADA(*)","EXPORTADOR/IMPORTADOR","PROCESO","N° DE EXPEDIENTE","PRODUCTO","PAIS DE DESTINO","HORA DE INSPECCION","OBSERVACIONES"]
[null,"RUSEL TORRES","FUNDO CALIFORNIA","LARAMA","MARITIMO",240850007473,"ARANDANO","PHILADELPHIA","09:00 HORAS","mery de new tranport"]
[null,null,"FUNDO CALIFORNIA","LARAMA","MARITIMO",240850007564,"ARANDANO","HONG KONG","10:00 HORAS","mery de new tranport"]
[null,null,"FUNDO CALIFORNIA","NECOVEX","MARITIMO",240850007574,"UVA","ROTTERDAM","14:00 HORAS","mery de new tranport"]
[null,null,"FUNDO CALIFORNIA","NECOVEX","MARITIMO",240850007576,"UVA","ALGECIRAS","15:00 HORAS","mery de new tranport"]
[null,null,"FUNDO CALIFORNIA","NECOVEX","MARITIMO",240850007605,"UVA","PHILADELPHIA","16:00 HORAS","mery de new tranport"]
[null,null,"FUNDO CALIFORNIA ","LARAMA BERRIES","EXPORTACION",240850007584,"ARANDANO","REINO UNIDO","16:00:00","LIZETH L."]
[null,null,"FUNDO CALIFORNIA","NECOVEX","MARITIMO",240850007527,"uva","ee.uu","10:00:00","KENDRA APARICIO"]
[null,"YIOMIRA CASSANO","HUAMANI","SUN FRUIT PACKS","MARITIMO",240180030537,"UVA","PORT HUENEME","10:00 HORAS","NEW TRANSPORT"]
[null,null,"HUAMANI","SUN FRUIT PACKS","MARITIMO",240850007590,"UVA","PHILADELPHIA","11:00 HORAS","NEW TRANSPORT"]
[null,"YIOMIRA CASANO","CONTINGENCIA"]

{"sheet":"direct inspect","index":2,"n_rows":95,"n_cols":6,"rows_kept":95,"merged":[[1,1,1,5]]}
[]
[null,"CUARENTENA VEGETAL"]
[null,"N°","NOMBRES ","TELEFONO","CORREO","CARGO"]
[null,1,"CHRISTIAN QUIROZ ZEVALLOS",983280670,"CQUIROZ@senasa.gob.pe","DIRECTOR EJECUTIVO"]
[null,2,"SHARON RIOS",944445937,"srios@senasa.gob.pe","SECRETARIA DE MESA DE PARTES"]
[null,3,"HERNANDEZ CARRION JESENIA MAGALI",944453592,"jhernandezc@senasa.gob.pe","JEFA(e) DEL AREA DE SANIDAD VEGETAL"]
[null,4,"CHACALIAZA MUÑOZ ANGELICA LOURDES",944453877,"cangelica@senasa.gob.pe","COORDINADORA REGIONAL DE CUARENTENA VEGETAL"]
[null,5,"CORNEJO MENDOZA FATIMA GIULIANA",956711630,"fcornejo@senasa.gob.pe","COORDINADORA DE CAMPAÑA EN PISCO"]
[null,6,"FERNANDEZ MEJIA GIULIANA RUTH",950017331,"gfernandez@senasa.gob.pe","COORDINADORA DE CAMPAÑA EN ICA"]
[null,7,"GARCIA GARCIA EDWIN OSWALDO",940909950,"egarciag@senasa.gob.pe","COORDINADOR DE NAZCA"]
[null,8,"GUERRA ALMEYDA MARIA CECILIA",969182837,"mguerra@senasa.gob.pe","COORDINADORA DE CAMPAÑA EN CHINCHA"]
[null,9,"RIOS VILLAGOMEZ ABNER",956975441,"ariosv@senasa.gob.pe","COORDINADOR DE PALPA"]
[null,10,"ANYOSA LOAYZA CESAR YMMER",938813931,"canyosa@senasa.gob.pe","RESPONSABLE DE CERTIFICACION PLANTA DE EMPAQUE"]
[null,11,"PARDO LU HUGO ",956654642,"hpardo@senasa.gob.pe","RESPONSABLE DE CERTIFICACION LUGARE DE PRODUCCION"]
[null,12,"NINA VILLACA SUSANA","969 100 645","snina@senasa.gob.pe","PERSONAL ADMINISTRATIVO"]
[null,13,"BELLIDO SALAZAR TANIA  DENISSE",944448284,"tbellido@senasa.gob.pe","ANALISTAS DE SANIDAD VEGETAL E INOCUIDAD"]
[null,14,"BELLO GASPAR THOMAS GLENN","994 145 813","tbello@senasa.gob.pe","ANALISTAS DE SANIDAD VEGETAL E INOCUIDAD"]
[null,15,"CAICO MORALES YANET MILAGROS",999103545,"ycaico@senasa.gob.pe","ANALISTA INTERMEDIO EN SANIDAD VEGETAL"]
[null,16,"CALLE BELLO DIANA EMILIA",976217513,"dcalle@senasa.gob.pe","ANALISTA INTERMEDIO EN SANIDAD VEGETAL"]
[null,17,"CALMET SENDER JORGE",932877401,"jcalmet@senasa.gob.pe","ANALISTAS DE SANIDAD VEGETAL E INOCUIDAD"]
[null,18,"CANALES  ESPINO MIRIAN RITA",945301061,"mcanales@senasa.gob.pe","ANALISTA INTERMEDIO EN SANIDAD VEGETAL"]
[null,19,"CASTILLO NAVARRO DANISSA",956262204,"dacastillon@senasa.gob.pe","ANALISTAS DE SANIDAD VEGETAL E INOCUIDAD"]
[null,20,"FUENTES BANONI GILMARA LIZETH",949783075,"lfuentes@senasa.gob.pe","ANALISTAS DE SANIDAD VEGETAL E INOCUIDAD"]
[null,21,"GUZMAN FLORES ELIZABETH LIDIA",943106468,"eguzman@senasa.gob.pe","ANALISTAS DE SANIDAD VEGETAL E INOCUIDAD"]
[null,22,"HUARCAYA CHACALIAZA ANDRES",956226326,"ahuarcayach@senasa.gob.pe","ANALISTA INTERMEDIO EN SANIDAD VEGETAL"]
[null,23,"HUAYLLA FLORES JESUS ABEL",916415918,"ajhuaylla@senasa.gob.pe","ANALISTAS DE SANIDAD VEGETAL E INOCUIDAD"]
[null,24,"HUANCA PACHECO NANCY","983 506 427","NANCY LISSET HUANCA PACHECO <NHUANCA@senasa.gob.pe>","Asistente intermedio en sanidad vegetal"]
[null,25,"JUNCHAYA MENDOZA EDUARDO AUGUSTO",972222439,"ejunchaya@senasa.gob.pe","ANALISTAS DE SANIDAD VEGETAL E INOCUIDAD"]
[null,26,"MANRIQUE AGUADO JOSE LUIS"," 923 228 268","maguado@senasa.gob.pe","ANALISTA INTERMEDIO EN SANIDAD VEGETAL"]
[null,27,"MATTA VARGAS JANETT MYRNA",947006745,"jmatta@senasa.gob.pe","ANALISTAS DE SANIDAD VEGETAL E INOCUIDAD"]
[null,28,"MEDINA GUERRA JOSE LUIS","956 990 018","jmedina@senasa.gob.pe","ANALISTAS DE SANIDAD VEGETAL E INOCUIDAD"]
[null,29,"PULIDO ESPINO CRISTIAN",956615575,"cpulido@senasa.gob.pe","ANALISTAS DE SANIDAD VEGETAL E INOCUIDAD"]
[null,30,"QUISPE MANRIQUE OSCAR ALFONSO","947 741 770","oquispem@senasa.gob.pe","ANALISTA INTERMEDIO EN SANIDAD VEGETAL"]
[null,31,"SALOMON PRADO ANDRES ANIBAL",956308288,"asalomon@senasa.gob.pe","ANALISTAS DE SANIDAD VEGETAL E INOCUIDAD"]
[null,32,"SALAZAR CULLANCO ALFREDO","944 634 639","asalazar@senasa.gob.pe","ANALISTA INTERMEDIO EN SANIDAD VEGETAL"]
[null,33,"TORRES ORTIZ RUSEL ALFONSO","978 363 630","ratorreso@senasa.gob.pe","ANALISTAS DE SANIDAD VEGETAL E INOCUIDAD"]
[null,34,"VALLE CHAVEZ MARIA TERESA",977251266,"mvalle@senasa.gob.pe","ANALISTAS DE SANIDAD VEGETAL E INOCUIDAD"]
[null,35,"VARGAS QUISPE CARLOS",956960994,"gvargasq@senasa.gob.pe","ANALISTAS DE SANIDAD VEGETAL E INOCUIDAD"]
[null,36,"YARASCA CHIPANA YSELA YOVANA",943957527,"yyarasca@senasa.gob.pe","ANALISTAS DE SANIDAD VEGETAL E INOCUIDAD"]
[]
[]
[]
[null,"N°","APELLIDOS Y NOMBRES","TELEFONO","CORREO","CARGO"]
[null,{"$f":"+B48+1","v":5},"ARQUIÑEJO ESPINOZA NIEVES ALEJANDRA","956 000 082","exportacion0628@gmail.com"]
[null,1,"ALLCAHUAMAN LIZBETH MARÍA ANYIRA MISAJEL",928180617,"lizbethmisajelallcahuaman@gmail.com","INSPECCION FITOSANITARIA"]
[null,{"$f":"+B45+1","v":2},"ALVITES LÉVANO EDITH VICTORIA ",982123387,"biovicky20@gmail.com","CERTIFICACION FITOSANITARIA"]
[null,{"$f":"+B46+1","v":3},"ALVITES LEVANO FANNY MAGALLY ",924563418,"fmal1530@gmail.com","TRATAMIENTO FITOSANITARIO"]
[null,4,"ANTICONA BERAUN MICHAEL SCOOT","998 239 384","Michaelab0695@gmail.com","CERTIFICACION FITOSANITARIA"]
[null,{"$f":"+B44+1","v":6},"AYQUIPA BAUTISTA MERY LUZ",43801679,"Meryluz17.ab@gmail.com ","TRATAMIENTO FITOSANITARIO"]
[null,7,"BALTAZAR ZUÑIGA BORIS ISAAC",977693843,"borisbaltazar019@gmail.com","INSPECCION FITOSANITARIA"]
[null,8,"CALDERÓN GUEVARA HECTOR ",968149160,"biohector35@gmail.com","TRATAMIENTO FITOSANITARIO"]
[null,9,"CASSANO FUERTES YIOMIRA MELCHORA",960195597,"yomiracassano06@gmail.com","INSPECCION FITOSANITARIA"]
[null,10,"CAVERO TUCNO KATHERINE","906 183 980","caverokatherine.1993@gmail.com","INSPECCION FITOSANITARIA"]
[null,11,"CHUQUISPUMA QUISPE CANDY DEL PILAR ",976220581,"candy.ch.16@hotmail.com","INSPECCION FITOSANITARIA"]
[null,12,"CONTRERAS RAMOS FRANCO ANTONIO",918918492,"franco.contreraz.777@gmail.com","TRATAMIENTO FITOSANITARIO"]
[null,13,"CONTRERAS RAMOS MILAGROS",977417104,"Agro.mcontreras.r@gmail.com","CERTIFICACION FITOSANITARIA"]
[null,14,"CORDOVA OSCCO VILMA",982227900,"vilmacor2418@gmail.com","INSPECCION FITOSANITARIA"]
[null,15,"CUBA CAHUANA JOSE CARLOS",960457064,"jcubacahuana@gmail.com","INSPECCION FITOSANITARIA"]
[null,16,"CULLANCO HUARACA CRISTHIAN","987 056 617","ronaldcullanco@gmail.com","INSPECCION FITOSANITARIA"]
[null,17,"DE LA CRUZ PEÑA JULIO SANTIAGO",987847919,"jjamesdlcp@gmail.com","INSPECCION FITOSANITARIA"]
[null,18,"ESPINO VELASQUEZ ALEX FERMIN ",948574315,"alexfermin0207@gmail.com","INSPECCION FITOSANITARIA"]
[null,19,"ESPINOZA RAMIREZ DANITZA MACARENA YAJAIRA",955626300,"macarenayajay11@hotmail.com","CERTIFICACION FITOSANITARIA"]
[null,20,"HERRERA IGNACIO MIGUEL ANGEL",932862105,"miguelhignacio17@gmail.com","INSPECCION FITOSANITARIA"]
[null,21,"HUAMAN ANDRES JUAN EDWIN","962 534 489","jhuamanplant@gmail.com","INSPECCION FITOSANITARIA"]
[null,22,"HUAMAN SANDOVAL ROCIO ",920534941,"rocio_rusbeth@hotmail.com","CERTIFICACION FITOSANITARIA"]
[null,23,"HUAMANI FLORES VICTOR",936502232,"victorhuamani969@gmail.com","CERTIFICACION FITOSANITARIA"]
[null,24,"HUARCAYA CORTEZ ALEX MEDARDO",937559919,"huarcayacortez@gmail.com","CERTIFICACION FITOSANITARIA"]
[null,25,"LAURA QUISPE JORGE LUIS","910 059 436","jlaura3241@gmail.com","INSPECCION FITOSANITARIA"]
[null,26,"MAX HUAUYA CINTHIA",975498610,"Cinthia.maxmj@gmail.com","CERTIFICACION FITOSANITARIA"]
[null,27,"MAYRA ALEXANDRA BENDEZU LINARES ",956479841,"mayrabendezulinares@gmail.com","CERTIFICACION FITOSANITARIA"]
[null,28,"MECA AGUILAR JOHNSON ARNOL"," 996 375 847","Johnsonperu2018@gmail.com","TRATAMIENTO FITOSANITARIO"]
[null,29,"MONTEZA CASTILLO KATHERINE LISSET","923504085 / 967455235","montezacastillo@gmail.com","TRATAMIENTO FITOSANITARIO"]
[null,30,"NUÑEZ NAPANGA GLADYS MARISOL","956 269 918","gladysnp200x@gmail.com","INSPECCION FITOSANITARIA"]
[null,31,"ORMEÑO RAMIREZ CLAUDIA",956401700,"blga.ormeno.r@gmail.com","CERTIFICACION FITOSANITARIA"]
[null,32,"PARAGULLA GARIBAY DANIZA GUADALUPE","998 521 633","danizapg@gmail.com","CERTIFICACION FITOSANITARIA"]
[null,33,"PICON GARCIA JOHN EDGAR",979195973,"johnpicongarcia@gmail.com","INSPECCION FITOSANITARIA"]
[null,34,"PIZARRO BARRIENTOS ROCIO",950534050,"rociobarrientos4p@gmail.com","TRATAMIENTO FITOSANITARIO"]
[null,35,"PORTILLO FLORES LEONOR",973962965,"leonorportillo53@gmail.com","CERTIFICACION FITOSANITARIA"]
[null,36,"RAMIREZ BAUTISTA ABRAHAM JESUS",956601919,"Abrahaam1092@gmail.com ","TRATAMIENTO FITOSANITARIO"]
[null,37,"RAMOS GRIMALDO MARÍA FARINA ",952984758,"mariafarinar@gmail.com","TRATAMIENTO FITOSANITARIO"]
[null,38,"ROJAS CARRANZA MARILU",985766920,"rojascarranzamariluu@gmail.com","INSPECCION FITOSANITARIA"]
[null,39,"SAAVEDRA HUANCA EVA","960 048 576","saavedraevi@gmail.com","TRATAMIENTO FITOSANITARIO"]
[null,40,"SANDRA MATTA SOLAR",956116903,"sandramatta2017@gmail.com","INSPECCION FITOSANITARIA"]
[null,41,"SANTI MELENDEZ JAIME RONALD ",974533149,"jsantimelendez@gmail.com","TRATAMIENTO FITOSANITARIO"]
[null,42,"SILVERA FLORES LISBET MARGOT ",963254646,"lissilveraflores@gmail.com","INSPECCION FITOSANITARIA"]
[null,43,"SOLLER DONAYRE INGRI BRIGITTE ",966330674,"bsollerdonayre@gmail.com","INSPECCION FITOSANITARIA"]
[null,44,"TAIPE PEDRO FELIX ",993709301,"pedrofelixtaipe07@gmail.com","INSPECCION FITOSANITARIA"]
[null,45,"TORRES PALOMINO JESUS ADEMIR ",987822833,"jesusademir21tp@gmail.com","TRATAMIENTO FITOSANITARIO"]
[null,46,"VALENZUELA TELLO DANIEL","942 980 367","dvtello_25@hotmail.com","CERTIFICACION FITOSANITARIA"]
[null,47,"VELAZQUEZ GARCIA YONIA",941609478,"Veyog.megan@gmail.com ","TRATAMIENTO FITOSANITARIO"]
[null,48,"NEYRA AYBAR MALEM ",982751642," malem141@hotmail.com","INSPECCION FITOSANITARIA"]
[null,49,"QUISPE CONISLLA GUSTAVO",927332258,"gustavoalonsoquispec@gmail.com","INSPECCION FITOSANITARIA"]
[null,50,"ICARRAYME PEREZ MILAGROS",947387093,"Perezmilagrosangelica@gmail.com","CERTIFICACION FITOSANITARIA"]
[null,51,"RODRIGUEZ YAURICASA EDUARDO",937258534,"edurodry6@gmail.com","INSPECCION FITOSANITARIA"]
[null,52,"SARAVIA JUNES PEDRO ABELARDO",933290112,"pedrosaravia_j@hotmail.com","INSPECCION FITOSANITARIA"]

{"sheet":"direct export","index":3,"n_rows":190,"n_cols":9,"rows_kept":190}
[]
[]
[null,null,"EMPRESA","NOMBRE Y APELLIDO","TELEFONO","CORREO","NOMBRE OPERADOR","OPERADOR","PRODUCTO"]
[null,null,"AC PERU INTERNACIONAL S.A.C. ","RICARDO ZEGARRA",989075615,"argencropsperuadm@gmail.com",null,null,"UVA"]
[null,null,"AGRICOLA ANDREA/ LARAMA BERRIES SAC","LIZETH LOPEZ MAGUIÑA",null,"liloma2609@gmail.com",null,null,"ARANDANO"]
[null,null,"AGRICOLA DELTA SAC","V. DIAZ",998182855,"vdiaz@agricoladelta.pe",null,null,"CEBOLLA"]
[null,null,"AGRICOLA DON RICARDO SAC","DUCELIE GALDOS ROSAS",982963207,"dgaldos@adr.com.pe",null,null,"UVA"]
[null,null,"AGRICOLA DON RICARDO SAC","NOELIA GUTIERREZ",997515035,"ngutierrez@adr.com.pe",null,null,"UVA"]
[null,null,"AGRICOLA DON RICARDO SAC","GIANMARCO GUTIERREZ",946485395,"ggutierrez@adr.com.pe",null,null,"PALTA"]
[null,null,"AGRICOLA DON RICARDO SAC","LUISA MINAS",985905573,"lminas@adr.com.pe",null,null,"ARANDANO"]
[null,null,"AGRICOLA DON RICARDO SAC","EVELYN HUAMANI",955546251,"ehuamani@adr.com.pe",null,null,"UVA"]
[null,null,"AGRICOLA HUARMEY SA","VICTORIA ALARCON F.",934004628,"victoria.alarcon@da-ah.com",null,null,"GRANADA"]
[null,null,"AGRICOLA HUARMEY SA","TRISHA ALVIAR",946371720,"trisha.alviar@da-ah.com",null,null,"GRANADA"]
[null,null,"AGRICOLA HUARMEY SA","CECILIA MORENO",981235641,"cecilia.moreno@da-ah.com",null,null,"GRANADA"]
[null,null,"AGRICOLA LOS MEDANOS S.A.","MIGUEL CARBAJAL LUCERO",null,"calidad.planta@agricolalosmedanos.com",null,null,"GRANADA"]
[null,null,"AGRICOLA MARIA ANTONIA SAC","CAROLAY VALENZUELA",940128479,"administracion@agmariaantonia.com",null,null,"ESPARRAGO"]
[null,null,"AGRICOLA MARIA ANTONIA SAC","JOAQUIN",964078683,"administracion@agmariaantonia.com",null,null,"ESPARRAGO"]
[null,null,"AGRICOLA MIRANDA SAC","MARIELA AQUIJE",946167483,"mariela@agricolamiranda.com",null,null,"CEBOLLA"]
[null,null,"AGRICOLA MIRANDA SAC","KATHERIN SIGUAS QUICAÑO",981029190,"katherin.siguas@agricolamiranda.com",null,null,"CEBOLLA"]
[null,null,"AGRICOLA MULTI EXPORT IMPORT SAC","LILIAN HIDALGO MUÑOZ",955148319,"lhidalgo@agroproductores.com.pe",null,null,"CEBOLLA"]
[null,null,"AGRICOLA ONION'S EXPORT SRL","HUGO TORRES",907392984,"Grupoatlantico.delperu@gmail.com",null,null,"UVA"]
[null,null,"AGRICOLA PROSEEDS ICA EIRL","JIMENA COLONIA",null,"jimenacr94@outlook.com.pe",null,null,"SEMILLA"]
[null,null,"AGRICOLA PAMAPA BAJA SAC","KELY AGUILAR DUEÑAS",962074787,"kaguilar@pampabaja.com",null,null,"UVA"]
[null,null,"AGRICOLA CHAPI SA","MIRIAN QUISPE ALFARO",983431838,"mirian.quispe@chapi.com.pe",null,null,"UVA"]
[null,null,"AGRICOLA CHAPI SA","YANET HUALLPA CUPITAY",null,"yanet.huallpa@chapi.com.pe",null,null,"UVA"]
[null,null,"AGRO GOLDEN SAC","LILIAN HIDALGO MUÑOZ",955148319,"lhidalgo@agroproductores.com.pe",null,null,"CEBOLLA"]
[null,null,"AGRO VICTORIA SAC","EDUARDO ENRIQUEZ ",945119802,"enriquezmurga@gmail.com",null,null,"UVA"]
[null,null,"AGROEXPORTADORA VIRGEN DEL CARMEN S.A.C.","NER BENDEZU FERREYRA",981167467,"nbendezu@agrodelcarmen.com; networt@hotmail.com",null,null,"CEBOLLA"]
[null,null,"AGROEXPORTTACNA SAC","JORGE LUIS ONOFTR CHURA",977487290,"agroexportacna@gmail.com",null,null,"SANDIA"]
[null,null,"AGROINDUSTRIA GUZMAN & NUÑEZ SAC","LUCILA NUÑEZ",970332756,"lnunezagynsac@gmail.com",null,null,"ESPARRAGO"]
[null,null,"AGROINDUSTRIA GUZMAN & NUÑEZ SAC","YILD LOPEZ",null,"supervisoraagynsac@gmail.com",null,null,"ESPARRAGO"]
[null,null,"AGROINDUSTRIA GUZMAN & NUÑEZ SAC","LIZET URBINA",902713186,"admagynsac@gmail.com",null,null,"ESPARRAGO"]
[null,null,"AGROSEED DEL PERU SAC","PAMELA HUAMANCAJA VILLALVA",947313208,"pamela@agroseeddelperu.com",null,null,"SEMILLA"]
[null,null,"ALGAEX S.A.","CHRISTIAN CHAMORRO",905477325,"Christian Chamorro <cchamorro@algaex.pe>",null,null,"ALGA SECA"]
[null,null,"ALPA SWEET E.I.R.L. ","DIANA MEJÍA SALVATIERRA",977705952,"delimejia83@gmail.com",null,null,"CEBOLLA"]
[null,null,"APP GROUP SAC","EDUARDO RAMIREZ QUEVEDO",992971656,"logistic@amqinversiones.com",null,null,"ARANDANO"]
[null,null,"AÑAY PERUVIAN FRUITS SAC","ANA VILLEGAS",null,"anacvp.av@gmail.com",null,null,"PALTA"]
[null,null,"AÑAY PERUVIAN FRUITS SAC","ARACELY PARDO LU",941117026,"anacvp.av@gmail.com",null,null,"ESPARRAGO"]
[null,null,"BAIKA PERU SAC","MIGUEL VALDIVIESO",982305561,"mvaldivieso@baikafruit.com",null,null,"PALTA"]
[null,null,"BALU SEEDS SAC","VIANCA JAIME SEDANO",998845969,"vianca.jaime.sedano@gmail.com",null,null,"SEMILLA"]
[null,null,"BALU SEEDS SAC / AGRICOLA PROSEEDS ICA SAC","PEDRO CALLA",961966284,"baluseeds@andeantradecompliance.pe",null,null,"SEMILLA"]
[null,null,"BERRYCO SAC","SANDRA SOTO",936638667,"ssoto@berryco.com.pe",null,null,"ESPARRAGO"]
[null,null,"CAMPOS DEL SUR","CARLOS SOLIS MAVILA",997624325,"csolis@casursa.com.pe",null,null,"UVA"]
[null,null,"CIA.DE EXP.Y NEGOCIOS GNRLES.S.A.(COEXA)","KARINA SALVA GRIJALBA",994221732,"operaciones@coexa.com.pe",null,null,"CITRICOS"]
[null,null,"CIA.DE EXP.Y NEGOCIOS GNRLES.S.A.(COEXA)","LUZ TOLEDO MITMA",975891509,"luztoledo@coexa.pe",null,null,"CITRICOS"]
[null,null,"COMERCIAL NIVAMA SAC","ESTEFANI QUINTEROS CRUZ",933727329,"certificaciones@sacramentograpes.com",null,null,"UVA"]
[null,null,"COMPLEJO AGROINDUSTRIAL BETA S.A.","MARIVEL CHIPANA",967748330,"mchipana@beta.com.pe",null,null,"ARANDANO"]
[null,null,"COMPLEJO AGROINDUSTRIAL BETA S.A.","FABRICIO GONZALES",987306557,"fgonzales@beta.com.pe; sloayza@beta.com.pe",null,null,"ESPARRAGO"]
[null,null,"COOPERALI ALIMENTOS DEL PERU SAC","KATHERINE",981029190,"exportaciones@cooperaliperu.com",null,null,"CEBOLLA"]
[null,null,"CORPORACION AGROEXPORTICA SAC ","PATY PEREZ",947803907,"operaciones@corporacionica.com",null,null,"ESPARRAGO"]
[null,null,"CORPORACION AGROLATINA S.A.C.","MILTON GOICOCHEA QUISPE",956792635,"mgoicochea@corpagrolatina.com",null,null,"PALTA"]
[null,null,"CULTIVARES SAC","PAOLO MORENO PEREIRA",null,"calidad@cultivares.pe",null,null,"DATIL"]
[null,null,"DIAZ PRODICE SAC","RODOLFO DIAZ",966740443,"diazproduce@gmail.com, comercio@diazproduce.co",null,null,"CEBOLLA"]
[null,null,"DIAZ PRODICE SAC","ROSARIO DEL PILAR GARCIA MUÑANTE",966740443,"diazproduce@gmail.com, comercio@diazproduce.co",null,null,"CEBOLLA"]
[null,null,"DOMEL PRODUCE SAC","NILTON PARRA",952508528,"comex@domelproduce.com",null,null,"CEBOLLA"]
[null,null,"EL PEDREGAL S.A","GRACIELA SUAREZ",947296474,"gsuarez@elpedregalsa.com",null,null,"UVA"]
[null,null,"EL PEDREGAL S.A","KEVIN CARRASCO",null,"kcarrasco@elpedregalsa.com",null,null,"UVA"]
[null,null,"EXPLORACIONES & LOGISTICA MINERAS SAC","ERNESTO GUERRERO ROSA",919285880,"edith@fdsagroexport.com; ccarpio19.cc@gmail.com, calidad.exploralmin@gmail.com",null,null,"ESPARRAGO"]
[null,null,"EXPLORACIONES & LOGISTICA MINERAS SAC","EDITH BERNUY MARILUZ",975599253,"edith@fdsagroexport.com; ccarpio19.cc@gmail.com",null,null,"ESPARRAGO"]
[null,null,"EXPLORACIONES & LOGISTICA MINERAS SAC","JUAN CARLOS TAYPE GUTIERREZ",919285880,"calidad@exploralmin.com",null,null,"ESPARRAGO"]
[null,null,"EXPORTADORA FRUTICOLA DEL SUR S.A.","MINERVA YANCEHUALLPA DONAYRE ",null,"myancehuallpa@Athos.com.pe",null,null,"ARANDANO"]
[null,null,"EXPORTADORA FRUTICOLA DEL SUR SA","LILIA HUAROTO PALOMINO","981209114 / 960248463","lhuaroto@Athos.com.pe",null,null,"PALTA"]
[null,null,"EXPORTADORA Y PROCESADORA DEL SUR SRL","ALEXIS VARGAS",957861037,"avargas@exprodelsur.com; ejurado@exprodelsur.com",null,null,"ESPARRAGO"]
[null,null,"FLORIDABLANCA SAC","FACUNDA MOLINA ALARCON",989598049,"fmolina@floridablanca.com.pe",null,null,"ESPARRAGO"]
[null,null,"FLORISERT S.A.C.","STEVEN CIER",null,"salesflorisert9@gmail.com",null,null,"FLORES"]
[null,null,"FRESH & READY HARVESTS SA","NATHALY PECEROS",976959191,"operaciones2@perumar.com.pe",null,null,"PALTA"]
[null,null,"FRUTOS TROPICALES","CAROLINA CARLIN",968340421,"supervisor.exportaciones@ftperu.pe",null,null,"GRANADA"]
[null,null,"FUNDO SAN FERNANDO SA","GLORIA LOPEZ GALLARDO",982569521,"glopez@agricolalajoya.com",null,null,"ESPARRAGO"]
[null,null,"FUNDO SAN FERNANDO SA","MELANIE BRAVO LOBO",912686477,"mbravo@agricolalajoya.com",null,null,"ESPARRAGO"]
[null,null,"GESTION EMPRESARIAL & LOGISTICA SAC","ALCIDES CESPEDES",94357103,"alcidesj.cespedes@gmail.com",null,null,"ESPARRAGO"]
[null,null,"GO DANI SAC","ALDO GAMARRA",991010078,"aldo@tambosur.com",null,null,"ESPARRAGO"]
[null,null,"GREENSAKURA","SISSI ROJAS",961776049,"operaciones@greensakura.net",null,null,"ESPARRAGO"]
[null,null,"GRUPO AGRIFER EIRL","YEREMI YUI",932129915,"produciongrupoagrifer@gmail.com",null,null,"ESPARRAGO"]
[null,null,"HM CLAUSE PERU SAC","MARIANA VALLE HUASASQUICHE",943935008,"exportacion.ica@hmclause.com",null,null,"SEMILLA"]
[null,null,"ICATOM SAC","JUAN JOSE BERMEJO",922018571,"jjbermejo@gastaldiperu.com",null,null,"CEBOLLA"]
[null,null,"IKALANDS SAC","SOFIA VERGARAY A.",926906798,"exportaciones@ikalands.pe",null,null,"CEBOLLA"]
[null,null,"IKALANDS SAC","Mariana Echevarria",926906798,"exportaciones@sami.pe; exportaciones@ikalands.pe",null,null,"CEBOLLA"]
[null,null,"INVERSIONES VITA SANA PERU S.A.C.","GIANLUCA FLORES",994937859,"operacionesperu@yahoo.es; mcosquillo.vpt@gmail.com",null,null,"ESPARRAGO"]
[null,null,"IQF DEL PERU SA","ROSA AURORY NAVARRO",998146868,"rosa.navarro@iqfperu.com",null,null,"SEMILLA"]
[null,null,"KEYPERU S.A","NICOLAS AGUILAR",5114477747,"nicolas@keyperu.com",null,null,"CEBOLLA"]
[null,null,"MANUELITA SAC","GUSTAVO JUNES CACERES",957725219,"despachosplanta@manuelita.com.pe",null,null,"UVA"]
[null,null,"MANUELITA SAC","FELIX VIZARRETA FAJARDO",961322087,"felix.vizarreta@manuelita.com.pe",null,null,"UVA"]
[null,null,"MANUELITA SAC","NATHALY VASQUEZ CHACON",914929879,"embarques.planta@manuelita.com.pe",null,null,"UVA"]
[null,null,"MENTOR AGRO PRODUCTOS S.A.C.","LILIAN HIDALGO MUÑOZ",955148319,"lhidalgo@agroproductores.com.pe",null,null,"CEBOLLA"]
[null,null,"MENTOR SERVICE TRADE SAC","LILIAN HIDALGO MUÑOZ",955148319,"lhidalgo@agroproductores.com.pe",null,null,"CEBOLLA"]
[null,null,"MONSANTO PERU SA","CRISTHIAN ALVARADO",934831412,"cristhian.alvarado.ext@bayer.com",null,null,"SEMILLA"]
[null,null,"MONSANTO PERU SA","DAVID RAMOS",960922023,"david.ramos1@bayer.com",null,null,"SEMILLA"]
[null,null,"MONSANTO PERU SA","GIAMPIERE CABRERA",977988451,"giampiere.cabrera@bayer.com",null,null,"SEMILLA"]
[null,null,"NOVOLIZ S.A.","DIANA PALOMINO LLAMOSA",979899304,"dpalomino@novoliz.biz; dberrospi@novoliz.biz",null,null,"CEBOLLA"]
[null,null,"MULTIPRODUCTORES GLOBALES-ANDINOS SAC","CYNTHIA LA ROSA",933513928,"clarosa@mgadelperu.com",null,null,"CEBOLLA"]
[null,null,"OGA PRODUCE SRL","MARIBEL VALDEIGLESIAS ARIAS",967301758,"mvaldeiglesias@hotmail.com",null,null,"CEBOLLA"]
[null,null,"ONIX FARMS SAC / SHUMAN PRODUCE PERU SAC","MAYRA LOPEZ CABRERA",947115068,"exportaciones@shumanperu.com",null,null,"CEBOLLA"]
[null,null,"PACIFIC SUN FARMS DEL PERU","LORENA SAAVEDRA",966307259,"lorena@expgroup.us",null,null,"ESPARRAGO"]
[null,null,"PACIFIC SUN FARMS DEL PERU","GRECIA MARZUKA",923334497,"comex@pacificsunfarms.us",null,null,"ESPARRAGO"]
[null,null,"PACIFIC SUN FARMS DEL PERU","RENZO RAMOS",952617331,"Renzo@expgroup.us",null,null,"ESPARRAGO"]
[null,null,"PEAK QUALITY DEL PERU SA","VALERIA GALARRETA RETAMOZO",951659157,"vgalarreta@peakquality.net",null,null,"ESPARRAGO"]
[null,null,"PEAK QUALITY DEL PERU SA","RITA BAUTISTA",951659157,"rbautista@peakquality.net",null,null,"ESPARRAGO"]
[null,null,"PALZANI SRL","JUAN MEJIA",946521756,"jmejia@jsperuaduanas.com",null,null,"CEBOLLA"]
[null,null,"PALZANI SRL","SANDRA YOVERA",982302131,"asistenteope@jsperucargo.pe",null,null,"CEBOLLA"]
[null,null,"PERUVIAN INKA FRUIT SAC","ALEXIS LAVA LAGUNA",965312234,"alexis.lava@inkafruit.pe",null,null,"ESPARRAGO"]
[null,null,"POMICA PERU SAC","LUIS RAMOS","056-772896 ","lramos@pomica.com.pe",null,null,"GRANADA"]
[null,null,"PROCESADORA DEL FRIO ","KARLA YOVANNA GARAYAR",980711226,"karlayovanna@procefrio.com.pe"]
[null,null,"PROCESADORA LARAN SAC / LA PORTADA","VICTOR MARCELO","942 899 887","vmarcelo@lacalera.com.pe",null,null,"UVA"]
[null,null,"PROCESOS AGROINDUSTRIALES SA","RAUL CASTRO MITAC",956792221,"PLANTAICA@proagro.pe",null,null,"ARANDANO"]
[null,null,"SERVICIOS GENERALES Y AGROPECUARIOS D'RUFFINO S.A. C.","LUIS ABAD",980451258,"luis.abad11@hotmail.com",null,null,"GRANADA"]
[null,null,"SOBIFRUITS S.A.C.","WILDER DAVILA ",981058059,"comex3@sobifruits.com",null,null,"UVA"]
[null,null,"SOBIFRUITS SAC","MARCELO FLORES",null,"logisen3@gmail.com",null,null,"UVA"]
[null,null,"SOBIFRUITS SAC","CHRIS PORTELLA",996339920,"comex2@sobifruits.com",null,null,"UVA"]
[null,null,"SOBIFRUITS SAC","RENZO MUÑANTE",977452122,"comex3@sobifruits.com",null,null,"UVA"]
[null,null,"SOCIEDAD AGRICOLA DON LUIS SA","JOSE SENSEBE",998348818,"jsensebe@sunfruits.com.pe; zmontalvan@sunfruits.com.pe",null,null,"PALTA"]
[null,null,"SOCIEDAD AGRICOLA DROKASA S.A.","PERCY PANTOJA",990551564,"tramites_vid@agrokasa.com.pe",null,null,"UVA"]
[null,null,"SOCIEDAD AGRICOLA DROKASA S.A.","JORGE VILCA HERNANDEZ",902660253,"tramites_vid@agrokasa.com.pe",null,null,"UVA"]
[null,null,"SOCIEDAD AGRICOLA DROKASA S.A.","MASSIEL FLORES PEREZ",957352366,"tramites_vid@agrokasa.com.pe",null,null,"PALTA"]
[null,null,"SOCIEDAD AGRICOLA DROKASA S.A.","JAIRO PERALES JUAREZ",998348515,"logisticaica@agrokasa.com.pe",null,null,"ESPARRAGO"]
[null,null,"SOCIEDAD AGRICOLA DROKASA S.A.","MARTHA CARPIO",939998413,"perfilesarandanosica@agrokasa.com.pe",null,null,"ARANDANO"]
[null,null,"SOCIEDAD AGRÍCOLA VILLABERRIES S.A.C.","MARIELA LAUREANO",923977198,"Senasa@vpmlogistics.net",null,null,"ARANDANO"]
[null,null,"SOLSUR TRADING SAC","LILIAN HIDALGO MUÑOZ",955148319,"lhidalgo@agroproductores.com.pe",null,null,"CEBOLLA"]
[null,null,"SUN FRUITS EXPORTS S.A.","JOSE SENSEBE",998348818,"jsensebe@sunfruits.com.pe",null,null,"CITRICOS"]
[null,null,"TIERRA SOLIDA SAC","PAMELA ALARCON TERRA",980409132,"pamela@tierrasolida.biz",null,null,"CEBOLLA"]
[]
[]
[]
[]
[]
[null,null,"EMPRESA","NOMBRE Y APELLIDO","TELEFONO","CORREO","NOMBRE OPERADOR","OPERADOR","PRODUCTO"]
[null,null,"AGRICOLA 2M S.A.C","ANNET SOLAR",981624794,"annet.solar@logiexpress.pe","LOGIEXPRESS","OPERADOR","PALTA"]
[null,null,"AGRICOLA 2M S.A.C","VIELKA HERNANDEZ GUILLERMO",983741109,"serviciocoordinacion.ama@gmail.com","SERVICIO AMA","OPERADOR","ARANDANO"]
[null,null,"AGRICOLA ANDREA/ LARAMA BERRIES SAC","MERY SAIRITUPAC",989333637,"mery.sairitupac@newtransport.net","NEW TRANSPORT","OPERADOR","ARANDANO"]
[null,null,"AGRICOLA BELTA SAC",null,null,"logistica@dglsac.pe","DGLsac","OPERADOR","CEBOLLA"]
[null,null,"AGRICOLA CHAPI SA","VIELKA HERNANDEZ GUILLERMO",983741109,"serviciocoordinacion.ama@gmail.com","SERVICIO AMA","OPERADOR","PALTA"]
[null,null,"AGRICOLA GUILI SAC","LUCERO CORDOVA FERNANDEZ",990392095,"luucf20@gmail.com","SERVICIO AMA","OPERADOR","PALTA"]
[null,null,"AGRICOLA LA GUERRERO SAC","KENDRA APARICIO",977755726,"operaciones@smartinternationallb.com","SMART INTERNATIONAL LOGISTICS BUSINESS","OPERADOR","UVA"]
[null,null,"AGRICOLA LA GUERRERO SAC","GEORGE VIDAL",926321343,"inspecciones.senasa@pacificforwarder.net","PACIFIC FORWARDER","OPERADOR","UVA"]
[null,null,"AGRICOLA LA GUERRERO SAC","JORDAN HUERTAS",924915023,"Senasa@vpmlogistics.net","VPM LOGISTICS SAC","OPERADOR","ARANDANO"]
[null,null,"AGRÍCOLA LA LUCIA S.A","JHONATHAN VARGAS",943288440,"oficinaica3@gmail.com","OFICINA ICA","OPERADOR","JOJOBA"]
[null,null,"AGRICOLA PAMPA VERDE SAC","EDITH BERNUY MARILUZ",975599253,"edith@fdsagroexport.com","FDS AGROEXPORT","OPERADOR","ESPARRAGO"]
[null,null,"AGRICOLA SAN CEFERINO S.A","JHONATHAN VARGAS",943288440,"oficinaica3@gmail.com",null,"OPERADOR","GRANOS DE JOJOBA"]
[null,null,"AGROINDUSTRIAS CHECCOBAMBA SAC","DIANA GUEVARA ESPINOZA",975505043,"diana.guevara@coastpacificperu.com","COAST PACIFIC GROUP","OPERADOR","PALTA"]
[null,null,"AGROVICTORIA SA","FAVIANA VALENCIA",935069945,"Faviana0905@hotmail.com / juanvalencialopez1961@gmail.com",null,"OPERADOR","UVA"]
[null,null,"AGROVICTORIA SAC /ESMERALDA","MERY SAIRITUPAC",989333637,"mery.sairitupac@newtransport.net","NEW TRANSPORT","OPERADOR","UVA"]
[null,null,"AGROVICTORIA SAC /ESMERALDA","JORDAN HUERTAS",924915023,"Senasa@vpmlogistics.net","VPM LOGISTICS SAC","OPERADOR","UVA"]
[null,null,"ALCOAXARQUIA PERU","JACQUELINE MENESES GUERRA",946152628,"jacqueline.meneses@newtransport.net","NEW TRANSPORT","OPERADOR","PALTA"]
[null,null,"AMATELE SAC","JUAN VALENCIA LOPEZ",935069945,"Faviana0905@hotmail.com / juanvalencialopez1961@gmail.com",null,"OPERADOR","PALTA"]
[null,null,"APP GROUP SAC","MILAGROS HUERTA",992971656,"logistic@appgroup.com.pe","APPGROUP","OPERADOR","ARANDANO"]
[null,null,"APP GROUP SAC","ISABEL GONZALES",992971656,"logistic@amqinversiones.com","LOGISTIC","OPERADOR","ARANDANO"]
[null,null,"CAMPOS DE SUR SA/ AGRICOLA RIACHUELO SAC","MERY SAIRITUPAC",989333637,"mery.sairitupac@newtransport.net","NEW TRANSPORT","OPERADOR","UVA"]
[null,null,"CORPORACION AGROLATINA SAC","ISAAC ORIHUELA ALFARO",962751401,"iaorihuela@agrorihuela.com","AGRORIHUELA SAC","OPERADOR","UVA"]
[null,null,"CORPORACION AGROLATINA SAC","ISSAC SIRLUPU MAURICIO",946914452,"isaacsirlupu@grupoatipana.com","GRUPO ATIPANA SAC","OPERADOR","PALTA"]
[null,null,"CORPORACION AGROLATINA SAC","HENRY PRADO NAVARRO",970588970,"atca.paita.adm@gmail.com; paita@grupopyclogistic.com","GRUPO P & C LOGISTIC SAC","OPERADOR","PALTA"]
[null,null,"CORPORACION AGROLATINA SAC","ANGELINA CALDERON",null,"Angelina Calderon <angelinancalderon@gmail.com>","LOGISTIC","OPERADOR","PALTA"]
[null,null,"CORPORACION AGROLATINA SAC","MERY SAIRITUPAC",989333637,"mery.sairitupac@newtransport.net","NEW TRANSPORT","OPERADOR","PALTA"]
[null,null,"CORPORACION AGROLATINA SAC","TEOFILO PORRAS",995712110,"teofilo.porras@newtransport.net; inspecciones-senasa@newtransport.net; amalia.fernandezbaca@newtransport.net ","NEW TRANSPORT","OPERADOR"]
[null,null,"CORPORACION AGROLATINA SAC","KENDRA APARICIO",977755726,"operaciones@smartinternationallb.com","SMART INTERNATIONAL LOGISTICS BUSINESS","OPERADOR","UVA"]
[null,null,"ESPARRAGOS DEL PERU SAC","CRISTIAN YAURI ROBLES",918977853,"christian.yauri@coastpacificperu.com; cyauri.coastpacific@gmail.com","COAST PACIFIC GROUP","OPERADOR","ESPARRAGO"]
[null,null,"ESPARRAGOS DEL PERU SAC","JORDAN HUERTAS",924915023,"Senasa@vpmlogistics.net","VPM LOGISTICS SAC","OPERADOR","ESPARRAGO"]
[null,null,"EXPORT WORLD INGENIEROS","LUIS MENA",946192235,"lmena@lmgloballogistics.com.pe","LM GLOBAL LOGISTICS","OPERADOR","CEBOLLA"]
[null,null,"EXPORTADOR: INVERSIONES Y EXPORTACIONES MIPAL SAC","JUAN MANUEL MALPARTIDA GOMEZ",970520355," jmalpartida@flexcargo.pe","FLEXCARGO EIRL","OPERADOR","PALTA"]
[null,null,"EXPORTADOR: INVERSIONES Y EXPORTACIONES MIPAL SAC","MARJORIE IPANAQUE",919284431,"operacioneslima@flexcargo.pe","FLEXCARGO EIRL","OPERADOR","PALTA"]
[null,null,"FLORFRUITS PERU","ROSA CANALES",964502220,"adintegrallogistics@gmail.com","AD LOGISTICS","OPERADOR","CEBOLLA"]
[null,null,"FLORFRUITS PERU SAC","SERGIO MORALES",922977626,"sergio.morales@datisaperu.org","DATISA FORWARDERS","OPERADOR","CEBOLLA"]
[null,null,"FUNDO SAN FERNANDO SA","ISABEL HERNANI",954181416,"pacific.exportaciones@pacificforwarder.net","PACIFIC FORWARDER","OPERADOR","UVA"]
[null,null,"GLOBAL AGRO PERU SAC","ROMINA PALACIOS",null,"programacion.agrologisticasrps@gmail.com; rpalacios.silva@gmail.com","AGRO LOGISTICASRPS","OPERADOR","UVA"]
[null,null,"GREY ENTERPRISES EXPORTS & SOURCING S.A.C","KATHERINE BARONA",955633080,"operaciones@greyenterprises.biz","GRE ENTERPRISES","OPERADOR","ESPARRAGO"]
[null,null,"INCA TARA S.A","JHONATHAN VARGAS",943288440,"oficinaica3@gmail.com",null,"OPERADOR","POLVO DE TARA"]
[null,null,"INCAVO SAC","LUCERO CORDOVA FERNANDEZ",990392095,"luucf20@gmail.com","LOGISTIC","OPERADOR","PALTA"]
[null,null,"INKA SELECT FRUIT S.A.C.","JACQUELINE VILCA MENDOZA",994332159,"mavilca9@gmail.com","LOGISTIC SPECIALIST","OPERADOR","PALTA"]
[null,null,"INVERSIONES GRAN CANARIA SAC","CRISTIAN HUERTAS MOREYRA",924915023,"Senasa@vpmlogistics.net","VPM LOGISTICS SAC","OPERADOR","CEBOLLA"]
[null,null,"LAPACHO SA","JHONATHAN VARGAS",943288440,"oficinaica3@gmail.com","OFICINA ICA","OPERADOR","JOJOBA"]
[null,null,"LARAMA BERRIES","TEOFILO PORRAS",995712110,"teofilo.porras@newtransport.net; inspecciones-senasa@newtransport.net","NEW TRANSPORT","OPERADOR","ARANDANO"]
[null,null,"LOS OLIVOS DE VILLACURI","ROSA GELDRES MIRANDA",946565295,"rgeldres15@gmail.com","AGRO LOGISTICASRPS","OPERADOR","UVA"]
[null,null,"AGRICOLA 2M S.A.C","ROSA GELDRES MIRANDA",946565295,"rgeldres15@gmail.com","AGRO LOGISTICASRPS","OPERADOR","UVA"]
[null,null,"NEW TRANSPORT","TEOFILO PORRAS",995712110,"teofilo.porras@newtransport.net; inspecciones-senasa@newtransport.net","NEW TRANSPORT","OPERADOR","PALTA"]
[null,null,"OGA PRODUCE SRL","ISAAC ORIHUELA ALFARO",962751401,"iaorihuela@agrorihuela.com","AGRORIHUELA SAC","OPERADOR","CEBOLLA"]
[null,null,"ONIX FARMS SAC","MARTIN HUAMAN LORO",968177469,"mhuaman@ecoaduanaslog.com, mhuaman@capflint.com","CAP FLINT SAC","OPERADOR","CEBOLLA"]
[null,null,"PHARTEC PRODUCE SAC","MARIA FERNANDA SILVERA G.",947512853,"mafersilvera.servicioama@gmail.com","SERVICIO AMA","OPERADOR","ESPARRAGO"]
[null,null,"PHARTEC PRODUCE SAC","VIELKA HERNANDEZ GUILLERMO",983741109,"serviciocoordinacion.ama@gmail.com","SERVICIO AMA","OPERADOR","ESPARRAGO"]
[null,null,"PHARTEC PRODUCE SAC",null,980024186,"serviciocoordinacion.ama@gmail.com","SERVICIO AMA","OPERADOR","ESPARRAGO"]
[null,null,"PROCESOS AGROINDUSTRIALES SA","MERY SAIRITUPAC",989333637,"mery.sairitupac@newtransport.net","NEW TRANSPORT","OPERADOR","ARANDANO"]
[null,null,"RVR AGRO S.R.L.","ROSA CANALES",964502220,"adintegrallogistics@gmail.com","AD LOGISTICS","OPERADOR","UVA"]
[null,null,"RVR AGRO S.R.L.","VIELKA HERNANDEZ GUILLERMO",983741109,"serviciocoordinacion.ama@gmail.com","SERVICIO AMA","OPERADOR","ARANDANO"]
[null,null,"SAFRESCO PERU SA","RODRIGO ORIHUELA ALFARO",940768380,"rorihuela@agrorihuela.com","AGRORIHUELA SAC","OPERADOR","PALTA"]
[null,null,"SOBIFRUITS S.A.C.","PAUL MENA",960863747,"pmena@lmgloballogistics.com.pe, comex2@sobifruits.com","GLOBAL LOGISTIC","OPERADOR","PALTA"]
[null,null,"SOBIFRUITS S.A.C.","DIEGO QUENECHE M",933920522,"pmena@lmgloballogistics.com.pe","GLOBAL LOGISTICS","OPERADOR","PALTA"]
[null,null,"SOCIEDAD AGRICOLA 3P SAC","ISABEL HERNANI",954181416,"pacific.exportaciones@pacificforwarder.net","PACIFIC FORWARDER","OPERADOR","ARANDANO"]
[null,null,"SOCIEDAD AGRÍCOLA VILLABERRIES S.A.C.","ISABEL HERNANI",954181416,"pacific.exportaciones@pacificforwarder.net","PACIFIC FORWARDER","OPERADOR","ARANDANO"]
[null,null,"SOCIEDAD AGRÍCOLA VILLABERRIES S.A.C.","JORDAN HUERTAS",924915023,"Senasa@vpmlogistics.net","VPM LOGISTICS SAC","OPERADOR","ARANDANO"]
[null,null,"TA EXPORT","DIANA GUEVARA ESPINOZA",975505043,"diana.guevara@coastpacificperu.com","COAST PACIFIC GROUP","OPERADOR","ESPARRAGO"]
[null,null,"TALSA AGROEXPORT SAC","RODRIGO ORIHUELA ALFARO",940768380,"rorihuela@agrorihuela.com","AGRORIHUELA SAC","OPERADOR","PALTA"]
[null,null,"TALSA AGROEXPORT SAC","MERY SAIRITUPAC",989333637,"mery.sairitupac@newtransport.net","NEW TRANSPORT","OPERADOR","PALTA"]
[null,null,"UVICA SAC","LUCERO CORDOVA FERNANDEZ",990392095,"luucf20@gmail.com","LOGISTIC","OPERADOR","PALTA"]